bitfinex-derivatives/quotes_SOLF0:USTF0_20260220
["timestamp","ask_amount","ask_price","bid_price","bid_amount"]
[1771593719487,27.99013432,83.149,83.111,25.72165897]
[1771593720090,27.99013432,83.149,83.113,10.8334]
[1771593720290,27.99013432,83.149,83.113,36.55505897]
[1771593721993,27.99013432,83.149,83.114,25.72165897]
[1771593725993,26.5410917,83.147,83.105,10.8344]
[1771593726199,26.5410917,83.139,83.105,10.8344]
[1771593726700,26.5410917,83.139,83.106,27.06212343]
[1771593730806,11.1086696,83.169,83.094,26.05302245]
[1771593730807,27.88216826,83.136,83.094,26.05302245]
[1771593731002,27.88216826,83.129,83.093,10.836]
[1771593733017,27.88216826,83.127,83.093,10.836]
[1771593751014,31.58665676,83.12,83.083,26.05302245]
[1771593752015,31.58665676,83.12,83.077,10.838]
[1771593752214,27.88216826,83.109,83.073,26.05302245]
[1771593753520,27.88216826,83.109,83.074,36.89152245]
[1771593758618,27.88216826,83.109,83.06,3.7044885]
[1771593758816,25.53375066,83.099,83.063,10.8399]
[1771593761326,25.53375066,83.099,83.068,10.8393]
[1771593767324,11.06617071,83.147,83.071,26.54647723]
[1771593767325,3.7044885,83.11,83.071,26.54647723]
[1771593767626,180.4102,83.183,83.031,2.09449293]
[1771593767627,3.7044885,83.14,83.091,26.54647723]
[1771593767826,25.53375066,83.143,83.101,26.54647723]
[1771593768824,25.53375066,83.143,83.107,37.38057723]
[1771593769420,25.53375066,83.143,83.111,26.54647723]
[1771593769626,25.53375066,83.159,83.111,26.54647723]
[1771593770728,25.53375066,83.159,83.115,37.37967723]
[1771593770923,25.53375066,83.159,83.068,36.09]
[1771593770924,25.53375066,83.119,83.068,36.09]
[1771593771126,25.53375066,83.099,83.056,0.02]
[1771593773420,25.53375066,83.089,83.044,10.8424]
[1771593774127,25.53375066,83.069,83.021,10.8454]
[1771593774630,25.53375066,83.069,83.02,3.7044885]
[1771593776628,25.53375066,83.069,83.02,30.25096573]
[1771593779031,25.53375066,83.059,83.012,10.8466]
[1771593781629,25.53375066,83.059,83.008,26.54647723]
[1771593781936,25.53375066,83.055,83.008,26.54647723]
[1771593782428,25.53375066,83.055,83.012,26.54647723]
[1771593782627,25.53375066,83.067,83.021,26.54647723]
[1771593782825,25.53375066,83.067,82.99,26.54647723]
[1771593783026,25.53375066,83.039,82.991,26.54647723]
[1771593783327,25.53375066,83.039,82.99,3.7044885]
[1771593783634,25.53375066,83.039,82.99,26.54647723]
[1771593783837,25.53375066,83.039,82.99,30.25096573]
[1771593784136,25.53375066,83.039,83.0,3.7044885]
[1771593784333,25.53375066,83.039,83.001,26.54647723]
[1771593786738,25.53375066,83.039,83.001,37.39447723]
[1771593789227,25.53375066,83.039,82.982,27.50817903]
[1771593789426,25.53375066,83.039,82.991,27.50817903]
[1771593789738,26.66369095,83.05,83.01,3.71440603]
[1771593790739,26.66369095,83.05,83.011,10.8467]
[1771593791439,26.66369095,83.039,82.999,27.50817903]
[1771593791635,26.66369095,83.039,82.99,3.71440603]
[1771593791834,26.66369095,83.039,82.991,27.50817903]
[1771593792038,26.66369095,83.039,82.92,185.46965932]
[1771593792039,26.66369095,83.009,82.95,27.50817903]
[1771593792237,168.6174,83.066,82.92,16.55715932]
[1771593792238,26.66369095,82.992,82.921,27.50817903]
[1771593792435,26.66369095,83.009,82.96,3.71440603]
[1771593793043,12.16901768,83.039,82.936,27.50817903]
[1771593793044,26.66369095,82.989,82.936,27.50817903]
[1771593793344,26.66369095,82.989,82.94,3.71440603]
[1771593793529,12.16901768,83.039,82.921,27.50817903]
[1771593793530,26.66369095,82.979,82.921,27.50817903]
[1771593793735,26.66369095,82.979,82.94,3.71440603]
[1771593793936,26.66369095,82.979,82.95,3.71440603]
[1771593794143,26.66369095,82.999,82.951,10.8546]
[1771593794345,26.66369095,82.999,82.95,3.71440603]
[1771593794536,26.66369095,82.999,82.95,10.8547]
[1771593794737,26.66369095,82.999,82.94,3.71440603]
[1771593795046,26.66369095,82.989,82.94,3.71440603]
[1771593795738,26.66369095,82.989,82.94,14.57040603]
[1771593796237,26.66369095,82.979,82.93,10.8573]
[1771593796442,26.66369095,82.979,82.93,14.57170603]
[1771593797347,26.66369095,82.979,82.938,10.8562]
[1771593797645,26.66369095,82.979,82.93,3.71440603]
[1771593797836,26.66369095,82.979,82.92,44.06533835]
[1771593798038,26.66369095,82.979,82.92,47.77974438]
[1771593798237,26.66369095,82.969,82.92,44.06533835]
[1771593798436,26.66369095,82.969,82.92,47.77974438]
[1771593799044,26.66369095,83.032,82.94,3.71440603]
[1771593799240,26.66369095,82.989,82.94,3.71440603]
[1771593799742,26.66369095,82.989,82.941,10.8559]
[1771593800339,26.66369095,82.989,82.951,10.8546]
[1771593801239,26.66369095,82.989,82.959,10.8535]
[1771593801441,26.66369095,83.009,82.97,3.71440603]
[1771593801738,26.66369095,83.009,82.96,27.50817903]
[1771593801943,26.66369095,83.009,82.97,3.71440603]
[1771593802143,26.66369095,83.009,82.971,10.852]
[1771593806443,26.66369095,83.009,82.97,3.71440603]
[1771593807842,26.66369095,83.009,82.97,14.56640603]
[1771593808847,47.1241817,83.068,82.92,16.55715932]
[1771593808848,26.66369095,83.007,82.954,27.50817903]
[1771593809043,26.66369095,83.007,82.961,27.50817903]
[1771593809247,26.66369095,83.007,82.97,3.71440603]
[1771593809646,26.66369095,83.007,82.962,10.8531]
[1771593810348,26.66369095,82.999,82.953,10.8543]
[1771593811851,26.66369095,82.997,82.944,10.8554]
[1771593813151,26.66369095,82.995,82.951,10.8546]
[1771593813647,26.66369095,82.988,82.937,27.50817903]
[1771593814250,26.66369095,82.988,82.94,3.71440603]
[1771593814456,26.66369095,82.988,82.95,3.71440603]
[1771593815043,26.66369095,82.988,82.945,10.8553]
[1771593816757,26.66369095,82.979,82.931,10.8572]
[1771593817153,26.66369095,82.979,82.931,35.92334292]
[1771593817355,26.66369095,82.979,82.936,10.8565]
[1771593819259,26.04062028,82.976,82.932,25.06614292]
[1771593820646,26.04062028,82.976,82.933,10.8569]
[1771593821551,26.04062028,82.976,82.94,10.8561]
[1771593822958,26.04062028,82.988,82.947,10.855]
[1771593823450,26.04062028,82.986,82.94,10.8561]
[1771593823659,26.04062028,82.969,82.92,20.27156535]
[1771593823955,26.04062028,82.969,82.92,16.55715932]
[1771593824160,26.04062028,82.969,82.921,25.06614292]
[1771593825161,26.04062028,82.964,82.921,35.92464292]
[1771593826657,26.04062028,82.959,82.921,10.8585]
[1771593829759,26.04062028,82.972,82.934,25.06614292]
[1771593830067,26.04062028,82.969,82.921,25.06614292]
[1771593831358,26.04062028,82.969,82.934,10.8568]
[1771593832458,26.04062028,82.969,82.926,10.8578]
[1771593834765,3.71440603,82.98,82.93,3.71440603]
[1771593834963,26.04062028,82.981,82.931,25.06614292]
[1771593835470,26.04062028,82.981,82.942,10.8558]
[1771593835669,35.44358923,82.98,82.942,10.8558]
[1771593835966,26.04062028,82.98,82.942,10.8558]
[1771593836765,26.04062028,82.98,82.947,10.8551]
[1771593837370,29.75502631,82.98,82.94,10.8561]
[1771593837566,26.04062028,82.969,82.94,10.8561]
[1771593839160,26.04062028,82.969,82.933,10.857]
[1771593839561,26.04062028,82.969,82.929,25.06614292]
[1771593839764,3.71440603,82.98,82.94,10.856]
[1771593839963,26.04062028,82.978,82.94,10.856]
[1771593840167,35.45223,82.977,82.94,10.856]
[1771593840363,26.04062028,82.977,82.94,10.856]
[1771593842373,26.04062028,82.977,82.946,10.8552]
[1771593845679,26.04062028,82.977,82.931,25.06614292]
[1771593846770,26.04062028,82.977,82.945,10.8553]
[1771593848373,9.41911507,82.99,82.953,10.8543]
[1771593848579,3.71440603,82.99,82.954,23.89294659]
[1771593848776,27.67425929,82.99,82.954,23.89294659]
[1771593849479,27.67425929,82.99,82.948,10.8549]
[1771593849776,23.95985326,82.969,82.925,23.89294659]
[1771593850174,23.95985326,82.969,82.931,10.8572]
[1771593853771,21.6951,83.006,82.923,10.8582]
[1771593853772,23.95985326,82.959,82.923,10.8582]
[1771593854273,3.72149754,82.95,82.92,16.55715932]
[1771593854477,27.6813508,82.95,82.92,16.55715932]
[1771593856289,23.95985326,82.95,82.92,16.55715932]
[1771593857982,27.6813508,82.95,82.92,16.55715932]
[1771593858184,23.95985326,82.917,82.863,10.8661]
[1771593858484,23.95985326,82.943,82.881,23.89294659]
[1771593858787,3.72149754,82.91,82.869,23.89294659]
[1771593858986,23.95985326,82.909,82.869,23.89294659]
[1771593859388,27.6813508,82.9,82.844,23.89294659]
[1771593859778,3.72149754,82.88,82.844,23.89294659]
[1771593859978,3.72149754,82.89,82.844,23.89294659]
[1771593860191,12.36489635,82.935,82.8,21.7487]
[1771593860192,23.95985326,82.912,82.861,23.89294659]
[1771593860383,3.72149754,82.9,82.861,23.89294659]
[1771593860584,27.6813508,82.91,82.861,23.89294659]
[1771593860878,14.64715259,82.956,82.8,21.7487]
[1771593860879,27.6813508,82.89,82.841,23.89294659]
[1771593861080,3.72149754,82.88,82.841,23.89294659]
[1771593861280,23.95985326,82.89,82.842,23.89294659]
[1771593862089,27.6813508,82.89,82.844,10.8685]
[1771593862278,3.72149754,82.88,82.842,23.89294659]
[1771593862481,27.6813508,82.89,82.842,23.89294659]
[1771593863282,23.95985326,82.903,82.861,10.8664]
[1771593863784,23.95985326,82.903,82.862,23.89294659]
[1771593864179,23.95985326,82.903,82.864,23.89294659]
[1771593864386,23.95985326,82.919,82.87,27.61444413]
[1771593864782,23.95985326,82.919,82.87,23.89294659]
[1771593864983,3.72149754,82.9,82.857,23.89294659]
[1771593865189,27.6813508,82.91,82.86,27.61444413]
[1771593866191,3.72149754,82.89,82.849,10.868]
[1771593867886,3.72149754,82.89,82.846,23.89294659]
[1771593870094,27.6813508,82.89,82.846,23.89294659]
[1771593871392,27.6813508,82.89,82.841,10.8689]
[1771593873495,27.6813508,82.88,82.842,23.89294659]
[1771593874292,23.95985326,82.88,82.842,23.89294659]
[1771593875486,23.95985326,82.88,82.844,10.8685]
[1771593875691,23.95985326,82.893,82.845,23.89294659]
[1771593876094,23.95985326,82.893,82.85,3.72149754]
[1771593876694,40.06617165,82.947,82.845,23.89294659]
[1771593876695,23.95985326,82.889,82.845,23.89294659]
[1771593876894,23.95985326,82.879,82.83,23.89294659]
[1771593877997,23.95985326,82.879,82.831,10.8703]
[1771593878595,23.87623665,82.877,82.831,10.8703]
[1771593879203,23.87623665,82.859,82.811,10.873]
[1771593879495,33.9748779,82.916,82.82,26.83724462]
[1771593879496,23.87623665,82.865,82.82,26.83724462]
[1771593879697,3.72149754,82.89,82.841,23.11574708]
[1771593879896,23.87623665,82.879,82.801,23.11574708]
[1771593880199,27.59773419,82.87,82.83,3.72149754]
[1771593880393,27.59773419,82.87,82.826,23.11574708]
[1771593881198,27.59773419,82.87,82.829,10.8705]
[1771593881697,23.87623665,82.87,82.829,33.98624708]
[1771593882195,3.72149754,82.88,82.834,33.98564708]
[1771593882405,23.87623665,82.877,82.834,23.11574708]
[1771593884101,23.87623665,82.877,82.835,23.11574708]
[1771593888896,3.72149754,82.87,82.835,23.11574708]
[1771593889096,23.87623665,82.869,82.82,3.72149754]
[1771593890097,23.87623665,82.869,82.828,10.8707]
[1771593891398,23.87623665,82.869,82.821,10.8716]
[1771593891803,23.87623665,82.867,82.821,10.8716]
[1771593892197,23.87623665,82.867,82.828,10.8707]
[1771593894299,23.87623665,82.859,82.819,23.11574708]
[1771593894800,23.87623665,82.859,82.81,3.72149754]
[1771593895199,23.87623665,82.859,82.81,26.83724462]
[1771593896406,23.87623665,82.857,82.811,10.8729]
[1771593897705,23.87623665,82.854,82.811,10.8729]
[1771593899007,23.87623665,82.854,82.818,23.11574708]
[1771593899808,23.87623665,82.872,82.83,26.83724462]
[1771593900105,26.89340432,82.871,82.83,23.11574708]
[1771593900308,6.73891625,82.87,82.83,23.11574708]
[1771593900605,3.01741871,82.869,82.83,23.11574708]
[1771593900801,27.59773419,82.86,82.801,23.11574708]
[1771593901003,23.87623665,82.849,82.801,23.11574708]
[1771593901205,3.72149754,82.84,82.801,23.11574708]
[1771593901404,23.87623665,82.849,82.812,10.8728]
[1771593902207,3.72149754,82.85,82.812,10.8728]
[1771593902208,26.89428002,82.848,82.812,10.8728]
[1771593902408,26.89428002,82.847,82.812,10.8728]
[1771593902604,3.01804337,82.846,82.812,10.8728]
[1771593902802,23.87623665,82.847,82.812,10.8728]
[1771593902999,3.01804311,82.846,82.812,10.8728]
[1771593903198,3.01804311,82.845,82.812,10.8728]
[1771593903402,3.01804311,82.844,82.812,10.8728]
[1771593903602,3.01804311,82.843,82.812,10.8728]
[1771593903805,23.87623665,82.847,82.803,10.8739]
[1771593903999,23.87623665,82.847,82.717,169.3264]
[1771593904000,23.87623665,82.819,82.756,23.11574708]
[1771593904404,23.87623665,82.819,82.771,23.11574708]
[1771593905202,23.87623665,82.819,82.726,181.69566255]
[1771593905203,23.87623665,82.819,82.774,23.11574708]
[1771593905508,23.87623665,82.819,82.781,23.37405741]
[1771593905706,23.87623665,82.819,82.774,10.8778]
[1771593906110,10.95521478,82.857,82.769,23.37405741]
[1771593906111,27.01563648,82.81,82.769,23.37405741]
[1771593906412,23.29413894,82.808,82.769,23.37405741]
[1771593906608,3.72149754,82.79,82.751,23.37405741]
[1771593906812,27.01563648,82.81,82.761,23.37405741]
[1771593907016,23.29413894,82.822,82.771,22.3941778]
[1771593907312,3.72149754,82.83,82.781,22.3941778]
[1771593907607,26.61333619,82.82,82.782,10.8767]
[1771593908610,26.61333619,82.82,82.773,10.8779]
[1771593908803,26.61333619,82.82,82.77,3.72149754]
[1771593909315,22.89183865,82.82,82.77,3.72149754]
[1771593909610,22.89183865,82.818,82.772,10.8781]
[1771593910202,22.89183865,82.818,82.772,33.2722778]
[1771593910509,22.89183865,82.818,82.773,22.3941778]
[1771593910906,22.89183865,82.818,82.779,22.3941778]
[1771593911714,22.89183865,82.818,82.783,10.8766]
[1771593913614,10.95521478,82.869,82.73,62.0]
[1771593913615,22.89183865,82.845,82.791,22.3941778]
[1771593913815,25.91028205,82.844,82.791,22.3941778]
[1771593914017,25.91028205,82.843,82.791,22.3941778]
[1771593914217,3.0184434,82.842,82.8,3.73411282]
[1771593914414,22.89183865,82.843,82.8,3.73411282]
[1771593914618,3.01844365,82.842,82.8,3.73411282]
[1771593914814,22.89183865,82.843,82.805,10.8737]
[1771593915019,3.01844365,82.842,82.805,10.8737]
[1771593915219,22.89183865,82.843,82.805,10.8737]
[1771593915518,3.01844365,82.842,82.805,10.8737]
[1771593915719,22.89183865,82.843,82.805,10.8737]
[1771593915915,22.89183865,82.856,82.816,10.8723]
[1771593916121,3.01816816,82.855,82.821,22.3941778]
[1771593916309,3.73411282,82.84,82.801,22.3941778]
[1771593917418,22.89183865,82.829,82.788,22.3941778]
[1771593918314,3.73411282,82.82,82.78,10.877]
[1771593919513,26.62595147,82.82,82.78,10.877]
[1771593920119,26.62595147,82.82,82.781,10.8769]
[1771593920428,26.62595147,82.82,82.775,22.3941778]
[1771593920618,22.89183865,82.82,82.745,22.3941778]
[1771593920922,26.62595147,82.8,82.751,22.3941778]
[1771593921718,26.62595147,82.8,82.753,33.2746778]
[1771593921912,26.62595147,82.8,82.753,22.3941778]
[1771593923022,22.89183865,82.799,82.754,22.3941778]
[1771593923922,22.89183865,82.799,82.757,10.88]
[1771593924822,22.89183865,82.799,82.754,22.3941778]
[1771593924823,22.89183865,82.799,82.764,10.879]
[1771593925124,22.89183865,82.799,82.76,26.12829062]
[1771593925624,22.89183865,82.814,82.778,10.8772]
[1771593925825,22.89183865,82.828,82.781,22.3941778]
[1771593926423,3.73411282,82.84,82.797,10.8748]
[1771593926625,26.62595147,82.84,82.797,10.8748]
[1771593926922,22.89183865,82.838,82.789,10.8758]
[1771593927122,3.73411282,82.83,82.781,22.3941778]
[1771593927521,22.89183865,82.838,82.797,10.8747]
[1771593928018,3.73411282,82.83,82.789,10.8758]
[1771593928619,26.62595147,82.83,82.789,10.8758]
[1771593928821,9.21330771,82.858,82.79,26.12829062]
[1771593928822,22.89183865,82.844,82.79,26.12829062]
[1771593929022,22.89183865,82.829,82.781,22.3941778]
[1771593929530,22.89183865,82.829,82.784,22.3941778]
[1771593930323,3.73411282,82.82,82.786,10.8761]
[1771593930625,22.89183865,82.829,82.784,22.3941778]
[1771593931225,22.89183865,82.819,82.784,10.8765]
[1771593931821,3.73411282,82.83,82.784,10.8765]
[1771593932122,3.73411282,82.83,82.793,10.8753]
[1771593932922,22.89183865,82.832,82.793,10.8753]
[1771593934726,10.8693,82.839,82.794,22.3941778]
[1771593935728,22.89183865,82.846,82.799,22.3941778]
[1771593936221,9.07976289,82.858,82.799,22.3941778]
[1771593936222,26.62595147,82.84,82.799,22.3941778]
[1771593936423,3.73411282,82.82,82.771,22.3941778]
[1771593936623,22.89183865,82.829,82.771,22.3941778]
[1771593937326,22.89183865,82.829,82.781,22.01922]
[1771593937529,22.17890314,82.851,82.791,22.01922]
[1771593937726,3.73411282,82.84,82.791,22.01922]
[1771593938929,22.17890314,82.847,82.794,22.01922]
[1771593939125,3.73411282,82.84,82.794,22.01922]
[1771593939828,22.17890314,82.847,82.801,22.01922]
[1771593940223,25.91301596,82.83,82.787,22.01922]
[1771593940828,22.17890314,82.83,82.787,22.01922]
[1771593941225,22.17890314,82.83,82.796,10.8748]
[1771593942732,10.8694,82.839,82.797,22.01922]
[1771593943528,3.73411282,82.83,82.797,22.01922]
[1771593945235,3.73411282,82.84,82.802,32.89332]
[1771593945433,3.73411282,82.84,82.803,22.01922]
[1771593945633,3.73411282,82.83,82.803,22.01922]
[1771593945831,3.73411282,82.82,82.771,22.01922]
[1771593946034,3.73411282,82.82,82.735,21.766]
[1771593946035,3.73411282,82.83,82.781,22.01922]
[1771593946232,3.73411282,82.83,82.791,10.8755]
[1771593946434,3.01877145,82.829,82.791,10.8755]
[1771593946634,3.73411282,82.83,82.791,10.8755]
[1771593946836,3.01877145,82.829,82.791,10.8755]
[1771593947036,3.73411282,82.83,82.791,10.8755]
[1771593947338,3.0187413,82.829,82.791,10.8755]
[1771593947531,3.01874155,82.828,82.791,10.8755]
[1771593947734,3.01874155,82.827,82.791,10.8755]
[1771593947937,3.01874155,82.826,82.791,10.8755]
[1771593948237,3.73411282,82.83,82.791,10.8755]
[1771593948435,3.73411282,82.82,82.791,10.8755]
[1771593948629,3.73411282,82.82,82.781,32.89612]
[1771593948830,3.73411282,82.81,82.781,10.8769]
[1771593949031,3.73411282,82.81,82.768,22.01922]
[1771593949536,3.73411282,82.8,82.769,10.8784]
[1771593949734,25.91301596,82.81,82.769,10.8784]
[1771593952137,25.91301596,82.81,82.77,22.01922]
[1771593952839,3.73411282,82.81,82.775,10.8777]
[1771593953241,3.73411282,82.81,82.77,22.01922]
[1771593953541,22.17890314,82.809,82.77,22.01922]
[1771593953738,22.17890314,82.809,82.773,10.8779]
[1771593954140,22.17890314,82.809,82.76,3.73411282]
[1771593954141,3.73411282,82.81,82.774,22.01922]
[1771593954841,3.73411282,82.83,82.784,22.01922]
[1771593955039,3.01905477,82.829,82.784,22.01922]
[1771593955235,3.01905477,82.828,82.784,22.01922]
[1771593955537,3.73411282,82.83,82.784,22.01922]
[1771593955734,3.01873902,82.829,82.793,32.89452]
[1771593956041,3.01873902,82.828,82.793,32.89452]
[1771593956340,3.73411282,82.83,82.793,32.89452]
[1771593956540,3.01873899,82.829,82.793,32.89452]
[1771593956741,3.01873899,82.828,82.793,32.89452]
[1771593956941,3.73411282,82.83,82.793,32.89452]
[1771593957141,3.01873939,82.829,82.794,22.01922]
[1771593957342,3.01873939,82.828,82.794,22.01922]
[1771593957539,3.01873939,82.827,82.794,22.01922]
[1771593957738,3.73411282,82.83,82.794,22.01922]
[1771593957939,3.01874223,82.829,82.794,22.01922]
[1771593958239,3.01874223,82.828,82.794,22.01922]
[1771593958449,3.01874223,82.827,82.794,22.01922]
[1771593958748,3.73411282,82.83,82.794,22.01922]
[1771593958941,3.01874208,82.829,82.794,22.01922]
[1771593959250,3.01874208,82.828,82.794,22.01922]
[1771593959444,3.01874208,82.827,82.794,22.01922]
[1771593959646,3.73411282,82.83,82.794,22.01922]
[1771593959846,3.01874142,82.829,82.794,22.01922]
[1771593960048,3.01874142,82.828,82.794,22.01922]
[1771593960352,3.73411282,82.83,82.794,22.01922]
[1771593960851,3.73411282,82.82,82.794,22.01922]
[1771593961052,3.73411282,82.81,82.771,22.01922]
[1771593961555,3.73411282,82.82,82.781,10.8769]
[1771593961856,3.01907451,82.819,82.781,10.8769]
[1771593962049,3.01907451,82.818,82.781,10.8769]
[1771593962248,3.01907451,82.817,82.781,10.8769]
[1771593962449,3.73411282,82.82,82.781,10.8769]
[1771593962643,3.01910519,82.819,82.782,22.01922]
[1771593962841,3.01910519,82.818,82.784,10.8765]
[1771593963046,3.01910519,82.817,82.784,10.8765]
[1771593963246,3.01910519,82.816,82.784,10.8765]
[1771593963447,3.73411282,82.82,82.784,10.8765]
[1771593963747,3.01907425,82.819,82.784,10.8765]
[1771593964044,3.01907425,82.818,82.784,10.8765]
[1771593964246,3.73411282,82.82,82.785,22.01922]
[1771593964445,3.0191312,82.819,82.785,22.01922]
[1771593964646,3.0191312,82.818,82.785,22.01922]
[1771593964850,25.91301596,82.82,82.761,22.01922]
[1771593965052,25.19800709,82.819,82.761,22.01922]
[1771593965254,3.73411282,82.81,82.761,22.01922]
[1771593965649,3.73411282,82.81,82.779,10.8771]
[1771593966050,3.73411282,82.81,82.775,20.71203468]
[1771593968354,22.17890314,82.819,82.775,20.71203468]
[1771593968555,3.01938783,82.818,82.775,20.71203468]
[1771593968752,3.01938783,82.817,82.775,20.71203468]
[1771593968948,3.01938783,82.816,82.775,20.71203468]
[1771593969155,3.01938783,82.815,82.778,22.02985171]
[1771593969457,3.73411282,82.82,82.778,22.02985171]
[1771593969657,3.01904167,82.819,82.778,22.02985171]
[1771593969958,3.01904167,82.818,82.778,22.02985171]
[1771593970153,3.73411282,82.82,82.778,22.02985171]
[1771593970456,3.01907224,82.819,82.778,22.02985171]
[1771593970657,14.60471282,82.83,82.781,22.02985171]
[1771593970848,3.01879103,82.829,82.781,22.02985171]
[1771593971054,3.01879103,82.828,82.781,22.02985171]
[1771593971355,3.01879103,82.827,82.781,22.02985171]
[1771593971550,3.01879103,82.826,82.781,22.02985171]
[1771593971758,3.01879103,82.825,82.781,22.02985171]
[1771593971953,20.15585556,82.836,82.781,22.02985171]
[1771593972157,3.01869756,82.835,82.781,22.02985171]
[1771593972359,3.01869756,82.834,82.781,22.02985171]
[1771593972559,3.01869756,82.833,82.781,22.02985171]
[1771593972762,3.01869756,82.832,82.79,22.02985171]
[1771593972960,3.01869756,82.831,82.79,22.02985171]
[1771593973160,3.01869756,82.83,82.79,25.76396453]
[1771593973357,10.8684,82.846,82.799,10.8744]
[1771593973565,12.21289581,82.845,82.8,22.02985171]
[1771593973763,3.73411282,82.84,82.8,22.02985171]
[1771593973964,3.01869216,82.839,82.8,22.02985171]
[1771593974160,3.01869216,82.838,82.802,10.874]
[1771593974365,10.867,82.857,82.8,22.02985171]
[1771593974366,3.01869216,82.837,82.803,22.02985171]
[1771593974667,3.73244362,82.83,82.781,22.02985171]
[1771593974966,3.73244362,82.84,82.794,22.02985171]
[1771593975163,3.01843858,82.839,82.794,22.02985171]
[1771593975464,3.01843858,82.838,82.794,22.02985171]
[1771593975665,3.01843858,82.837,82.801,22.02985171]
[1771593975866,3.01843858,82.836,82.801,22.02985171]
[1771593976164,3.01843858,82.835,82.801,22.02985171]
[1771593976365,3.01843858,82.834,82.801,22.02985171]
[1771593976565,9.19470196,82.846,82.801,22.02985171]
[1771593976767,12.21313845,82.845,82.803,22.02985171]
[1771593976963,23.88829918,82.84,82.803,22.02985171]
[1771593977166,3.73244362,82.83,82.781,22.02985171]
[1771593978268,23.88829918,82.84,82.781,22.02985171]
[1771593978464,3.01844126,82.839,82.781,22.02985171]
[1771593978665,3.01844126,82.838,82.791,10.8756]
[1771593978865,3.01844126,82.837,82.792,22.02985171]
[1771593979065,3.01844126,82.836,82.792,22.02985171]
[1771593979263,3.01844126,82.835,82.792,22.02985171]
[1771593979465,3.01844126,82.834,82.806,22.02985171]
[1771593979766,3.73244362,82.85,82.806,22.02985171]
[1771593979767,4.126e-05,82.833,82.806,22.02985171]
[1771593979970,9.19429188,82.848,82.806,22.02985171]
[1771593980271,9.19429188,82.847,82.806,22.02985171]
[1771593980466,10.8672,82.855,82.806,22.02985171]
[1771593980666,10.8675,82.853,82.809,22.02985171]
[1771593980867,3.73244362,82.85,82.809,22.02985171]
[1771593981067,9.19465929,82.849,82.809,22.02985171]
[1771593981366,9.09644058,82.848,82.809,22.02985171]
[1771593981668,3.73244362,82.85,82.809,22.02985171]
[1771593981869,9.09617862,82.849,82.809,22.02985171]
[1771593982166,10.8675,82.853,82.811,22.02985171]
[1771593982371,3.73244362,82.85,82.811,22.02985171]
[1771593982671,9.09599937,82.849,82.811,22.02985171]
[1771593982866,3.73244362,82.85,82.811,22.02985171]
[1771593983064,9.09561459,82.849,82.813,22.02985171]
[1771593983269,3.73244362,82.85,82.813,22.02985171]
[1771593983461,9.0955894,82.849,82.813,22.02985171]
[1771593983670,255.71035606,82.859,82.813,22.02985171]
[1771593983869,9.09595887,82.858,82.82,10.8717]
[1771593984070,255.71035606,82.859,82.821,22.02985171]
[1771593985762,255.71035606,82.859,82.821,32.90135171]
[1771593985964,255.71035606,82.859,82.822,22.02985171]
[1771593986474,255.71035606,82.859,82.824,22.02985171]
[1771593986872,3.73244362,82.85,82.801,22.02985171]
[1771593987764,3.73244362,82.85,82.814,10.8726]
[1771593989071,20.15585556,82.853,82.814,32.90245171]
[1771593989370,255.71035606,82.859,82.818,32.90175171]
[1771593989973,255.71035606,82.859,82.821,10.8717]
[1771593991767,3.01790047,82.858,82.821,10.8717]
[1771593991970,3.01790047,82.857,82.821,10.8717]
[1771593992170,3.01790047,82.856,82.821,10.8717]
[1771593992371,255.71035606,82.859,82.821,10.8717]
[1771593992574,3.01790098,82.858,82.821,10.8717]
[1771593992773,3.73244362,82.85,82.819,22.02985171]
[1771593992975,255.71035606,82.859,82.819,22.02985171]
[1771593993275,3.01790304,82.858,82.819,22.02985171]
[1771593993475,3.01790304,82.857,82.821,22.02985171]
[1771593993772,255.71035606,82.859,82.821,22.02985171]
[1771593993965,3.01790098,82.858,82.821,22.02985171]
[1771593994166,3.01790098,82.857,82.821,22.02985171]
[1771593994366,255.71035606,82.859,82.821,22.02985171]
[1771593994571,3.01790356,82.858,82.821,22.02985171]
[1771593994768,255.71035606,82.859,82.821,22.02985171]
[1771593994769,3.01790356,82.857,82.821,22.02985171]
[1771593994964,3.73244362,82.85,82.821,22.02985171]
[1771593997881,255.71035606,82.859,82.821,22.02985171]
[1771593998073,3.01790197,82.858,82.821,22.02985171]
[1771593998269,3.01790197,82.857,82.821,22.02985171]
[1771593998475,3.01790197,82.856,82.821,22.02985171]
[1771593998773,255.71035606,82.859,82.821,22.02985171]
[1771593998970,3.01790197,82.858,82.821,22.02985171]
[1771593999175,3.01790197,82.857,82.821,22.02985171]
[1771593999375,3.73244362,82.85,82.821,22.02985171]
[1771594000786,3.73244362,82.83,82.778,20.93365559]
[1771594001084,9.09360929,82.858,82.758,312.7597]
[1771594001085,3.73244362,82.82,82.781,20.93365559]